bitfinex-derivatives/quotes_SOLF0:USTF0_20250311
["timestamp","ask_amount","ask_price","bid_price","bid_amount"]
[1741669507103,15.9,121.68,121.65,32.24]
[1741669507505,15.9,121.68,121.67,8.2212]
[1741669507904,4.1198,121.74,121.66,13.76299166]
[1741669508104,4.1198,121.74,121.69,8.2197]
[1741669508304,4.1198,121.74,121.7,32.24]
[1741669509102,4.1198,121.74,121.71,8.2181]
[1741669509405,17.82428001,121.74,121.69,0.05987085]
[1741669509604,8.2196,121.7,121.67,32.24]
[1741669509803,8.2196,121.7,121.65,40.4623]
[1741669510009,21.5363,121.73,121.65,32.24]
[1741669510308,45.94448001,121.72,121.65,32.24]
[1741669510511,65.10448001,121.72,121.65,32.24]
[1741669510717,8.2203,121.69,121.65,32.24]
[1741669511008,0.05736836,121.7,121.67,0.05648104]
[1741669511401,0.05736836,121.7,121.63,32.24]
[1741669511598,0.05736836,121.7,121.62,271.28]
[1741669511802,8.2237,121.64,121.6,32.24]
[1741669512004,32.24,121.69,121.6,32.24]
[1741669512209,4.0651,121.68,121.61,13.70448001]
[1741669512516,0.05734611,121.66,121.63,0.05930932]
[1741669514407,0.05734611,121.66,121.63,46.00378933]
[1741669514913,0.05734611,121.66,121.63,32.29930932]
[1741669515113,0.05734611,121.66,121.63,40.52300932]
[1741669515409,0.05734611,121.66,121.63,32.29930932]
[1741669516610,0.05734611,121.66,121.63,40.52280932]
[1741669517214,0.05734611,121.66,121.64,8.2232]
[1741669517414,0.05734611,121.66,121.64,13.70448001]
[1741669518007,0.05734611,121.66,121.65,8.2226]
[1741669519111,15.37,121.7,121.67,8.2209]
[1741669519415,15.37,121.7,121.68,32.24]
[1741669520511,15.42900578,121.7,121.68,32.29670876]
[1741669522414,23.64840578,121.7,121.68,0.05670876]
[1741669522813,15.42900578,121.7,121.68,0.05670876]
[1741669523009,23.64840578,121.7,121.68,0.05670876]
[1741669523417,15.42900578,121.7,121.68,0.05670876]
[1741669524516,15.42900578,121.7,121.69,45.92448001]
[1741669524720,19.16,121.72,121.69,45.92448001]
[1741669525016,19.16,121.72,121.71,13.70448001]
[1741669525215,19.16,121.72,121.71,21.92298001]
[1741669525216,9.3279,121.72,121.71,21.92298001]
[1741669526009,9.3279,121.72,121.71,8.2185]
[1741669526406,9.3279,121.72,121.68,0.05670876]
[1741669526614,9.3279,121.72,121.68,32.27670876]
[1741669526919,9.3279,121.72,121.68,40.49680876]
[1741669527116,9.3279,121.72,121.68,32.27670876]
[1741669527316,19.5636,121.72,121.68,32.27670876]
[1741669527517,11.3454,121.72,121.68,40.49720876]
[1741669527713,11.3454,121.72,121.68,32.27670876]
[1741669528019,11.3454,121.72,121.69,8.2193]
[1741669528519,19.5634,121.72,121.68,54.20148877]
[1741669528716,11.3454,121.72,121.68,40.49700876]
[1741669528916,11.3454,121.72,121.68,32.27670876]
[1741669530118,19.5637,121.72,121.68,32.27670876]
[1741669530324,11.3454,121.72,121.68,32.27670876]
[1741669530521,11.3454,121.72,121.68,45.98118877]
[1741669530818,11.3454,121.72,121.69,8.2195]
[1741669531321,19.5636,121.72,121.68,54.20138877]
[1741669531522,19.5636,121.72,121.68,40.49690876]
[1741669531724,8.2192,121.71,121.68,32.27670876]
[1741669531922,11.3454,121.72,121.68,0.05670876]
[1741669532621,8.2194,121.7,121.68,0.05670876]
[1741669532823,34.2154,121.72,121.68,0.05670876]
[1741669533022,34.2154,121.72,121.69,8.2194]
[1741669533616,24.8875,121.72,121.69,8.2194]
[1741669533815,24.8875,121.72,121.68,0.05670876]
[1741669534424,24.8875,121.72,121.68,8.27690876]
[1741669534722,24.8875,121.72,121.68,0.05670876]
[1741669535422,8.2189,121.71,121.68,0.05670876]
[1741669535624,24.8875,121.72,121.65,8.2225]
[1741669535625,57.1075,121.72,121.65,8.2225]
[1741669536019,8.2202,121.69,121.64,45.92448001]
[1741669536219,57.1075,121.72,121.66,8.2218]
[1741669536624,8.2196,121.7,121.66,8.2218]
[1741669536822,8.27630876,121.7,121.68,0.0552183]
[1741669537027,1.9737,121.69,121.68,0.0552183]
[1741669538026,1.9737,121.69,121.67,32.22]
[1741669538224,1.9737,121.69,121.65,32.22]
[1741669538423,10.1939,121.69,121.65,32.22]
[1741669539329,10.1939,121.69,121.66,0.06279161]
[1741669539516,10.1939,121.69,121.66,8.28459161]
[1741669539721,10.1939,121.69,121.66,0.06279161]
[1741669540029,1.9737,121.69,121.66,0.06279161]
[1741669540729,1.9737,121.69,121.64,8.223]
[1741669540930,2.146,121.68,121.62,45.92448001]
[1741669541130,8.2215,121.67,121.63,8.2234]
[1741669541324,10.2228,121.67,121.62,45.92448001]
[1741669541725,10.2228,121.67,121.63,8.2236]
[1741669542024,0.05496955,121.66,121.63,8.28096898]
[1741669542222,0.05496955,121.66,121.64,8.2231]
[1741669543524,0.05496955,121.66,121.63,8.28086898]
[1741669543929,8.27686955,121.66,121.63,8.28086898]
[1741669544330,8.27686955,121.66,121.59,20.51835134]
[1741669544331,0.05496955,121.66,121.59,20.51835134]
[1741669544729,0.05496955,121.66,121.58,122.19611081]
[1741669544925,47.92578001,121.67,121.58,122.19611081]
[1741669545527,8.2246,121.62,121.61,0.05703898]
[1741669552743,10.2677,121.62,121.61,0.05703898]
[1741669553141,8.2272,121.59,121.57,32.22]
[1741669553334,8.2272,121.59,121.55,40.469]
[1741669553741,8.2278,121.58,121.54,21.93428001]
[1741669554042,34.2831,121.62,121.54,45.94448001]
[1741669554242,0.0616302,121.57,121.55,0.05604596]
[1741669554442,8.2268,121.59,121.55,8.28474596]
[1741669554642,0.06171053,121.57,121.55,0.05604596]
[1741669554843,34.2831,121.62,121.55,0.05604596]
[1741669555044,0.05925708,121.57,121.55,0.05604596]
[1741669555245,34.2831,121.62,121.55,0.05604596]
[1741669555440,0.05715513,121.57,121.55,0.05604596]
[1741669555640,34.2831,121.62,121.55,8.28524596]
[1741669555846,34.2831,121.62,121.55,0.05604596]
[1741669556039,0.05300222,121.6,121.55,0.05604596]
[1741669556238,8.27960222,121.6,121.56,8.2283]
[1741669556439,0.05300222,121.6,121.56,8.2283]
[1741669556643,0.05300222,121.6,121.55,0.05604596]
[1741669556845,0.05300222,121.6,121.55,8.28494596]
[1741669557046,0.05300222,121.6,121.55,0.05604596]
[1741669557247,8.2286,121.56,121.55,0.05604596]
[1741669559752,4.2783052,121.57,121.49,1.78115078]
[1741669559753,17.98278521,121.57,121.49,32.24]
[1741669559950,17.92038001,121.57,121.48,284.98448001]
[1741669560151,8.2312,121.53,121.49,40.4729]
[1741669560353,8.2312,121.53,121.49,32.24]
[1741669560658,8.2312,121.53,121.5,8.2325]
[1741669560854,0.05955357,121.52,121.5,8.29227495]
[1741669561357,0.05955357,121.52,121.5,0.05977495]
[1741669562461,0.05955357,121.52,121.5,8.29247495]
[1741669562860,0.05955357,121.52,121.5,13.76425496]
[1741669563161,0.05955357,121.52,121.5,0.05977495]
[1741669563661,0.05955357,121.52,121.5,8.29227495]
[1741669563862,0.05955357,121.52,121.5,0.05977495]
[1741669564661,0.05955357,121.52,121.51,8.232]
[1741669565363,0.05955357,121.52,121.5,8.29217495]
[1741669566166,0.05955357,121.52,121.5,0.05977495]
[1741669568963,0.05955357,121.52,121.5,13.76425496]
[1741669569263,0.00243466,121.52,121.51,8.232]
[1741669569456,12.4442,121.57,121.5,13.76425496]
[1741669569662,13.70448001,121.61,121.52,13.70448001]
[1741669569860,13.70448001,121.61,121.54,8.2295]
[1741669570063,8.2267,121.59,121.54,8.2295]
[1741669570261,13.70448001,121.61,121.54,8.2295]
[1741669570461,13.70448001,121.61,121.53,40.4904]
[1741669570668,0.06015756,121.59,121.56,0.05257002]
[1741669571162,8.2277,121.58,121.56,0.05257002]
[1741669571561,0.06015756,121.59,121.56,32.29257002]
[1741669572267,8.28725756,121.59,121.56,32.29257002]
[1741669572455,0.06015756,121.59,121.56,32.29257002]
[1741669573058,0.06015756,121.59,121.56,0.05257002]
[1741669573266,8.2278,121.58,121.56,0.05257002]
[1741669573459,0.06015756,121.59,121.56,0.05257002]
[1741669573864,0.06015756,121.59,121.57,32.24]
[1741669575562,0.06015756,121.59,121.56,0.05257002]
[1741669575768,13.70448001,121.57,121.51,32.24]
[1741669576068,8.231,121.53,121.51,32.24]
[1741669576867,1.9878,121.56,121.48,111.91399082]
[1741669577067,8.2315,121.52,121.51,0.06225837]
[1741669578373,0.06224015,121.53,121.51,0.06225837]
[1741669579371,8.2314,121.52,121.51,0.06225837]
[1741669579576,0.06224015,121.53,121.51,0.06225837]
[1741669580570,13.76672016,121.53,121.45,271.4]
[1741669580875,13.70448001,121.53,121.46,32.24]
[1741669581072,2.1511,121.52,121.45,271.4]
[1741669581376,2.1511,121.52,121.46,32.24]
[1741669581776,8.29356,121.5,121.48,0.05370561]
[1741669582675,8.2334,121.49,121.48,0.05370561]
[1741669582979,0.06036,121.5,121.44,32.26]
[1741669583376,8.2348,121.47,121.44,32.26]
[1741669583778,8.2356,121.46,121.44,32.26]
[1741669584078,0.06185696,121.46,121.44,32.31640304]
[1741669587279,0.06185696,121.46,121.44,40.55310304]
[1741669589278,0.06185696,121.46,121.45,8.2361]
[1741669589482,0.00815135,121.46,121.45,8.2361]
[1741669591286,20.79,121.49,121.44,46.02088305]
[1741669591486,20.79,121.49,121.45,1.49404054]
[1741669591683,20.79,121.49,121.44,46.02088305]
[1741669591885,20.79,121.49,121.47,8.2343]
[1741669592085,20.79,121.49,121.47,40.4943]
[1741669592283,20.79,121.49,121.47,32.26]
[1741669592585,20.85171696,121.49,121.47,32.31833398]
[1741669593088,20.85171696,121.49,121.48,8.2341]
[1741669593285,20.85171696,121.49,121.47,32.31833398]
[1741669593883,20.85171696,121.49,121.47,0.05833398]
[1741669595083,29.08561696,121.49,121.47,0.05833398]
[1741669595281,13.70448001,121.48,121.4,171.97680828]
[1741669595486,13.70448001,121.46,121.4,52.80557051]
[1741669595687,2.1868,121.45,121.4,52.80557051]
[1741669595888,2.1868,121.45,121.4,32.26]
[1741669596385,2.1868,121.45,121.41,0.05440424]
[1741669596585,0.05967045,121.44,121.41,0.05440424]
[1741669597483,0.05967045,121.44,121.41,8.29280424]
[1741669598190,8.29657045,121.44,121.41,0.05440424]
[1741669598689,8.2376,121.43,121.41,0.05440424]
[1741669600388,8.2381,121.42,121.41,0.05440424]
[1741669601282,13.70448001,121.42,121.34,375.22059082]
[1741669601487,2.20307045,121.44,121.35,32.26]
[1741669601488,13.70448001,121.4,121.35,32.26]
[1741669601688,2.0099,121.39,121.34,89.97611081]
[1741669601883,13.70448001,121.38,121.34,89.97611081]
[1741669602392,8.2428,121.36,121.35,0.06293672]
[1741669602990,0.05909716,121.37,121.35,0.06293672]
[1741669604189,0.05909716,121.37,121.35,8.30523672]
[1741669604589,0.05909716,121.37,121.36,32.28]
[1741669604794,0.05909716,121.37,121.36,40.5222]
[1741669605294,16.29,121.39,121.38,8.2408]
[1741669606291,16.29,121.39,121.36,32.28]
[1741669607596,16.29,121.39,121.38,8.2408]
[1741669612998,16.29,121.39,121.36,32.28]
[1741669612999,1.373e-05,121.4,121.39,8.2402]
[1741669613187,22.92,121.42,121.39,32.28]
[1741669613392,22.92,121.42,121.4,1.49301017]
[1741669613795,22.92,121.42,121.41,8.2388]
[1741669614394,22.92,121.42,121.41,9.7314043]
[1741669614696,4.3426,121.48,121.41,1.4926043]
[1741669614894,4.3426,121.48,121.42,32.26]
[1741669615798,0.05941025,121.46,121.44,0.06341479]
[1741669616192,0.05941025,121.46,121.45,32.26]
[1741669617300,0.05941025,121.46,121.44,0.06341479]
[1741669623398,0.05941025,121.46,121.44,8.30001479]
[1741669623898,0.05941025,121.46,121.44,0.06341479]
[1741669625003,0.05941025,121.46,121.44,8.29981479]
[1741669625404,0.05941025,121.46,121.44,0.06341479]
[1741669626001,0.05941025,121.46,121.45,8.2361]
[1741669626400,1.025e-05,121.46,121.45,8.2361]
[1741669626600,21.41,121.48,121.47,8.2347]
[1741669626801,21.41,121.48,121.47,40.4947]
[1741669631005,0.05391875,121.49,121.47,40.4947]
[1741669631313,0.05391875,121.49,121.48,21.89955578]
[1741669631916,0.05391875,121.49,121.48,8.2341]
[1741669632721,0.05391875,121.49,121.47,32.32309753]
[1741669634123,0.05391875,121.49,121.47,40.55769753]
[1741669634319,0.05391875,121.49,121.47,32.32309753]
[1741669634915,0.05391875,121.49,121.48,13.66545578]
[1741669635414,0.05391875,121.49,121.48,15.15628389]
[1741669635618,0.05391875,121.49,121.48,21.89955578]
[1741669636417,0.05391875,121.49,121.47,40.55749753]
[1741669636614,0.05391875,121.49,121.47,32.32309753]
[1741669637224,0.05391875,121.49,121.48,8.2341]
[1741669639829,0.05391875,121.49,121.47,32.32309753]
[1741669640225,0.05391875,121.49,121.47,0.06309753]
[1741669640419,8.2341,121.48,121.47,0.06309753]
[1741669640619,0.05391875,121.49,121.43,286.71773137]
[1741669640620,2.10191875,121.49,121.45,32.24]
[1741669641127,8.2342,121.48,121.45,32.24]
[1741669641726,8.2342,121.48,121.45,32.29307676]
[1741669643729,10.33561875,121.49,121.45,32.29307676]
[1741669644229,0.05391875,121.49,121.45,45.95853254]
[1741669644430,0.05391875,121.49,121.47,13.66545578]
[1741669644729,0.05391875,121.49,121.48,40.4741]
[1741669646730,0.05391875,121.49,121.48,41.96343084]
[1741669647930,0.05391875,121.49,121.48,40.4741]
[1741669649230,20.57,121.5,121.49,8.2334]
[1741669649429,23.25,121.51,121.5,13.66545578]
[1741669650236,23.25,121.51,121.5,21.89815578]
[1741669650535,23.25,121.51,121.5,23.38622544]
[1741669650937,23.25,121.51,121.5,21.89815578]
[1741669655439,0.05604028,121.52,121.51,8.232]
[1741669655635,0.05604028,121.52,121.51,40.452]
[1741669655837,3.64,121.53,121.51,32.22]
[1741669656035,3.64,121.53,121.52,21.89685578]
[1741669656337,542.00949498,121.73,121.52,28.8180125]
[1741669656534,6.128,121.67,121.63,8.2235]
[1741669656738,6.128,121.67,121.64,32.22]
[1741669657037,6.17997231,121.67,121.65,32.22]
[1741669661041,6.17997231,121.67,121.64,0.05509878]
[1741669661341,6.17997231,121.67,121.65,32.2]
[1741669664138,4.16097231,121.67,121.65,32.2]
[1741669664341,0.05197231,121.67,121.65,32.2]
[1741669665236,0.05197231,121.67,121.64,13.72055456]
[1741669665539,0.05197231,121.67,121.65,32.2]
[1741669665943,0.05197231,121.67,121.66,32.2]
[1741669666148,0.05197231,121.67,121.66,25.6318]
[1741669666348,8.27377231,121.67,121.64,0.05509878]
[1741669666641,8.27377231,121.67,121.65,32.2]
[1741669667142,8.2219,121.66,121.65,22.3474]
[1741669667644,8.2219,121.66,121.64,0.05509878]
[1741669668033,8.2219,121.66,121.64,32.23509878]
[1741669668238,8.27347231,121.67,121.64,32.23509878]
[1741669668442,0.05197231,121.67,121.64,32.23509878]
[1741669668937,0.05197231,121.67,121.64,40.45789878]
[1741669669345,0.05197231,121.67,121.65,8.2221]
[1741669669543,0.05197231,121.67,121.64,45.90055456]
[1741669670142,0.05197231,121.67,121.64,54.12335456]
[1741669671046,0.05197231,121.67,121.64,32.23509878]
[1741669671241,0.05197231,121.67,121.64,0.05509878]
[1741669671444,0.05197231,121.67,121.61,303.66]
[1741669672340,8.223,121.65,121.61,303.66]
[1741669672537,8.223,121.65,121.63,0.05969361]
[1741669672742,16.13,121.68,121.64,32.18]
[1741669673048,0.05433904,121.65,121.64,32.18]
[1741669674838,8.27713904,121.65,121.63,0.05969361]
[1741669675235,0.05433904,121.65,121.63,0.05969361]
[1741669676542,8.27693904,121.65,121.63,0.05969361]
[1741669676746,0.05433904,121.65,121.63,0.05969361]
[1741669678547,8.27753904,121.65,121.63,0.05969361]
[1741669679045,0.05433904,121.65,121.63,0.05969361]
[1741669683353,8.27693904,121.65,121.63,0.05969361]
[1741669683547,0.05433904,121.65,121.63,0.05969361]
[1741669683845,8.2232,121.64,121.63,0.05969361]
[1741669684051,0.05433904,121.65,121.63,0.05969361]
[1741669684944,8.27693904,121.65,121.63,0.05969361]
[1741669685749,0.05433904,121.65,121.63,0.05969361]
[1741669686649,8.27713904,121.65,121.63,0.05969361]
[1741669689952,8.27713904,121.65,121.63,0.05969361]
[1741669690152,0.05433904,121.65,121.63,8.28319361]
[1741669690549,0.05433904,121.65,121.63,0.05969361]
[1741669691144,20.54,121.67,121.63,0.05969361]
[1741669691348,20.54,121.67,121.64,13.66545578]
[1741669691551,20.54,121.67,121.65,32.18]
[1741669691755,28.7615,121.67,121.65,32.18]
[1741669692256,28.81806054,121.67,121.65,32.18]
[1741669692552,8.2222,121.66,121.65,32.18]
[1741669693146,20.59656054,121.67,121.65,32.18]
[1741669693761,20.59656054,121.67,121.65,40.4023]
[1741669694156,20.59656054,121.67,121.65,32.18]
[1741669695952,28.81806054,121.67,121.65,32.18]
[1741669696151,20.59656054,121.67,121.65,32.18]
[1741669696354,20.59656054,121.67,121.64,32.16]
[1741669698958,20.59656054,121.67,121.66,8.2219]
[1741669699267,20.59656054,121.67,121.64,34.3224]
[1741669699654,20.59656054,121.67,121.64,47.98785578]
[1741669699857,13.66545578,121.65,121.61,20.44002686]
[1741669700363,13.66545578,121.63,121.6,18.82673767]
[1741669700564,32.16,121.64,121.57,275.99129908]
[1741669700565,13.66545578,121.61,121.58,265.1660696]
[1741669700760,21.89205578,121.59,121.58,258.9531696]
[1741669701262,21.89205578,121.59,121.57,276.04928595]
[1741669701263,16.0,121.58,121.57,268.86045689]
[1741669701566,56.3873,121.58,121.57,147.84293787]
[1741669701760,42.8473,121.58,121.57,0.05798687]
[1741669701964,42.8473,121.58,121.57,8.687e-05]
[1741669702361,8.2298,121.55,121.49,303.32]
[1741669702765,54.0105385,121.58,121.49,303.32]
[1741669702967,8.2287,121.56,121.5,8.2325]
[1741669703465,0.05349633,121.54,121.52,0.05236074]
[1741669703767,34.09103445,121.53,121.52,0.05236074]
[1741669703965,124.58591548,121.53,121.52,0.05236074]
[1741669704268,118.00791548,121.53,121.52,32.23236074]
[1741669704467,114.71901548,121.53,121.52,32.23236074]
[1741669704960,0.05349633,121.54,121.52,32.23236074]
[1741669705261,11.36398079,121.61,121.53,21.8505385]
[1741669705465,26.33291334,121.62,121.58,21.8505385]
[1741669705662,26.33291334,121.62,121.59,32.18]
[1741669706061,26.33291334,121.62,121.59,40.4061]
[1741669706462,0.06300451,121.62,121.59,40.46534819]
[1741669707663,0.06300451,121.62,121.59,32.23924819]
[1741669708463,0.06300451,121.62,121.59,0.05924819]
[1741669710360,0.06300451,121.62,121.59,8.28584819]
[1741669710766,0.06300451,121.62,121.59,0.05924819]
[1741669712866,0.06300451,121.62,121.53,1.64568419]
[1741669713068,21.8505385,121.62,121.53,1.64568419]
[1741669713266,21.8505385,121.62,121.51,8.2319]
[1741669713267,8.2278,121.58,121.51,8.2319]
[1741669713468,34.1715,121.57,121.51,8.2319]
[1741669713866,36.2841,121.57,121.51,8.2319]
[1741669714066,0.06099065,121.55,121.53,0.05302615]
[1741669714369,16.93,121.63,121.54,32.18]
[1741669714567,16.93,121.63,121.56,21.8505385]
[1741669714768,16.93,121.63,121.57,32.22]
[1741669715071,16.93,121.63,121.62,8.2246]
[1741669715375,16.93,121.63,121.62,40.5846]
[1741669718180,0.06157284,121.64,121.63,8.2239]
[1741669718371,1.9915,121.68,121.62,54.2105385]
[1741669719475,0.0622804,121.66,121.64,0.06013926]
[1741669719681,0.0622804,121.66,121.65,32.28]
[1741669720575,0.0622804,121.66,121.65,40.5026]
[1741669725077,1.9917,121.72,121.68,8.2205]
[1741669725278,1.9917,121.72,121.68,32.18]
[1741669725783,21.6617,121.72,121.68,32.18]
[1741669726389,0.06172691,121.71,121.69,8.27324246]
[1741669729684,0.06172691,121.71,121.69,0.05394246]
[1741669731293,8.28052691,121.71,121.69,0.05394246]
[1741669731585,0.06172691,121.71,121.69,0.05394246]
[1741669732196,0.06172691,121.71,121.7,8.2192]
[1741669733296,19.67,121.72,121.71,8.2185]
[1741669733493,19.67,121.72,121.71,40.3785]
[1741669733795,41.92,121.73,121.71,32.16]
[1741669734597,41.9747061,121.73,121.72,8.2178]
[1741669735496,41.9747061,121.73,121.71,40.3784]
[1741669735694,41.9747061,121.73,121.72,32.16]
[1741669736094,41.9747061,121.73,121.72,40.3778]
[1741669737599,24.9747061,121.73,121.72,40.3778]
[1741669737993,6.1793,121.79,121.72,40.3778]
[1741669738189,6.1793,121.79,121.72,32.16]
[1741669738591,8.2155,121.76,121.72,32.16]
[1741669738799,6.1793,121.79,121.72,32.16]
[1741669739301,0.04403269,121.77,121.74,0.06027174]
[1741669739601,8.2158,121.75,121.74,0.06027174]
[1741669743405,8.2174,121.73,121.71,32.26]
[1741669743704,13.60849279,121.77,121.71,32.26]
[1741669744104,13.60849279,121.77,121.7,8.2187]
[1741669744307,13.60849279,121.77,121.71,32.28]
[1741669744703,0.06160079,121.75,121.73,0.0550978]
[1741669745204,8.2165,121.74,121.73,0.0550978]
[1741669745404,0.06160079,121.75,121.73,0.0550978]
[1741669746707,0.06160079,121.75,121.74,32.28]
[1741669748010,8.27740079,121.75,121.74,32.28]
[1741669748207,0.06160079,121.75,121.74,32.28]
[1741669751313,0.06160079,121.75,121.74,40.4965]
[1741669751516,0.06160079,121.75,121.74,32.28]
[1741669751913,0.06160079,121.75,121.74,40.4965]
[1741669753513,8.2141,121.78,121.74,40.4965]
[1741669754112,25.2034,121.79,121.74,45.88849279]
[1741669754509,16.99,121.79,121.76,13.60849279]
[1741669754712,0.04270364,121.78,121.77,32.4]
[1741669755608,0.04270364,121.78,121.77,40.6145]
[1741669756215,0.04270364,121.78,121.77,32.4]
[1741669756911,67.24677182,121.82,121.77,303.38]
[1741669757115,67.24677182,121.82,121.81,13.60849279]
[1741669757313,67.24677182,121.84,121.81,46.00849279]
[1741669757913,67.24677182,121.84,121.82,8.2106]
[1741669758225,67.24677182,121.84,121.81,46.06796114]
[1741669759315,67.24677182,121.84,121.82,8.2107]
[1741669759509,67.24677182,121.84,121.81,46.06796114]
[1741669759715,67.24677182,121.84,121.83,13.60849279]
[1741669759917,141.12893337,121.85,121.84,8.2097]
[1741669760111,141.12893337,121.85,121.84,32.46]
[1741669760522,136.28390961,121.86,121.84,32.46]
[1741669760817,78.82240238,121.86,121.85,13.60849279]
[1741669761017,70.00940238,121.86,121.85,21.81759279]
[1741669761212,34.08680694,121.9,121.85,13.60849279]
[1741669761410,34.08680694,121.9,121.87,13.60849279]
[1741669761607,34.08680694,121.9,121.88,32.46]
[1741669762007,66.62680694,121.9,121.86,0.06058029]
[1741669762207,66.62680694,121.9,121.81,13.60849279]
[1741669762208,2.0258,121.89,121.81,13.60849279]
[1741669762624,2.0258,121.89,121.82,32.76]
[1741669762819,2.1115,121.88,121.82,32.76]
[1741669763123,2.1115,121.88,121.81,13.60849279]
[1741669763323,8.26284404,121.86,121.84,0.06187937]
[1741669764719,8.2091,121.85,121.84,0.06187937]
[1741669765026,0.05394404,121.86,121.77,270.98]
[1741669765214,8.2108,121.83,121.78,32.98]
[1741669765414,32.98,121.85,121.78,32.98]
[1741669766120,0.06162189,121.83,121.8,0.05891484]
[1741669766324,8.27252189,121.83,121.8,0.05891484]
[1741669766522,0.06162189,121.83,121.8,0.05891484]
[1741669767523,0.06162189,121.83,121.81,32.92]
[1741669767724,0.06162189,121.83,121.82,8.2111]
[1741669768921,0.06162189,121.83,121.8,0.05891484]
[1741669769323,0.06162189,121.83,121.8,8.27091484]
[1741669769522,0.06162189,121.83,121.8,0.05891484]
[1741669769820,0.06162189,121.83,121.8,8.27131484]
[1741669771019,26.16,121.85,121.84,41.1697]
[1741669776225,0.05909452,121.86,121.84,35.42]
[1741669776430,23.7085376,121.97,121.85,21.7284376]
[1741669776732,27.7068376,121.97,121.85,21.7284376]
[1741669776928,8.2029,121.95,121.9,8.2053]
[1741669777123,33.56,121.95,121.89,33.58]
[1741669777327,21.7284376,121.94,121.85,33.54]
[1741669777532,8.2043,121.92,121.91,0.06316647]
[1741669777723,33.54,121.92,121.85,33.54]
[1741669777924,8.2069,121.89,121.83,8.2102]
[1741669778131,4.0617,121.91,121.82,21.7284376]
[1741669778330,4.0617,121.91,121.83,33.52]
[1741669778531,8.2066,121.89,121.83,33.52]
[1741669778830,0.05899211,121.87,121.85,0.05352984]
[1741669779434,0.05899211,121.87,121.79,270.74]
[1741669779622,8.2096,121.85,121.81,33.52]
[1741669779821,21.7284376,121.88,121.81,33.52]
[1741669780230,33.52,121.89,121.81,33.52]
[1741669780626,0.05412394,121.86,121.84,0.06030228]
[1741669780827,8.26262394,121.86,121.84,0.06030228]
[1741669781229,0.05412394,121.86,121.84,0.06030228]
[1741669781641,8.2091,121.85,121.84,0.06030228]
[1741669782025,2.0759,121.85,121.81,33.44]
[1741669782230,8.2104,121.83,121.81,33.44]
[1741669782730,8.2099,121.84,121.81,33.44]
[1741669782931,2.0759,121.85,121.81,33.44]
[1741669783135,0.05633762,121.84,121.81,33.49998728]
[1741669783433,0.05633762,121.84,121.81,41.71128728]
[1741669783733,0.05633762,121.84,121.81,33.43998728]
[1741669784330,8.2108,121.83,121.81,33.43998728]
[1741669786035,0.05633762,121.84,121.81,41.65138728]
[1741669786235,0.05633762,121.84,121.81,33.43998728]
[1741669787134,8.26633762,121.84,121.81,33.43998728]
[1741669787731,8.2111,121.82,121.81,33.43998728]
[1741669787937,0.05633762,121.84,121.74,270.9541]
[1741669788234,13.59380149,121.83,121.75,33.34]
[1741669788436,8.2135,121.79,121.75,41.5554]
[1741669789033,8.27583311,121.78,121.76,0.05492456]
[1741669789234,13.59380149,121.83,121.76,0.05492456]
[1741669789435,8.26571902,121.78,121.76,0.05492456]
[1741669789638,8.2139,121.78,121.76,0.05492456]
[1741669789834,8.26908768,121.78,121.76,0.05492456]
[1741669790936,0.05518768,121.78,121.76,0.05492456]
[1741669791240,0.05518768,121.78,121.76,8.26972456]
[1741669793740,0.05518768,121.78,121.76,0.05492456]
[1741669796140,0.05518768,121.78,121.76,8.26972456]
[1741669798343,0.05518768,121.78,121.77,8.2145]
[1741669798746,0.05518768,121.78,121.76,0.05492456]
[1741669798940,0.05518768,121.78,121.76,8.26972456]
[1741669800147,0.05518768,121.78,121.76,0.05492456]
[1741669800341,0.05518768,121.78,121.77,8.2145]
[1741669800644,0.05518768,121.78,121.76,0.05492456]
[1741669800843,0.05518768,121.78,121.76,8.26972456]
[1741669802848,0.05518768,121.78,121.77,8.2145]
[1741669804356,24.9559,121.85,121.76,13.64872605]
[1741669804549,24.9559,121.85,121.8,8.2122]
[1741669804749,24.9559,121.85,121.79,33.24]
[1741669805056,24.9559,121.85,121.79,41.4527]
[1741669805557,8.27081954,121.83,121.81,0.06112772]